bitfinex/quotes_SOLUSD_20250920
["timestamp","ask_amount","ask_price","bid_price","bid_amount"]
[1758355653594,3.48862629,239.82,239.81,12.64419013]
[1758355653789,4.7353956,239.82,239.81,12.64419013]
[1758355656111,8.90518961,239.82,239.81,12.64419013]
[1758355656610,8.22518961,239.82,239.81,0.3]
[1758355656795,8.90518961,239.82,239.81,0.3]
[1758355656995,8.22518961,239.82,239.81,0.3]
[1758355657699,8.90518961,239.82,239.81,0.3]
[1758355658404,8.22518961,239.82,239.81,0.3]
[1758355658710,8.90518961,239.82,239.81,0.3]
[1758355661925,6.9784203,239.82,239.81,0.3]
[1758355662219,8.22518961,239.82,239.81,0.3]
[1758355665523,4.0553956,239.82,239.81,0.3]
[1758355666620,4.0534411,239.82,239.81,0.3]
[1758355669019,8.22323511,239.82,239.81,0.3]
[1758355669326,8.90323511,239.82,239.81,0.3]
[1758355674332,15.13866479,239.82,239.81,0.3]
[1758355679128,18.64700453,239.82,239.81,0.3]
[1758355680026,20.31900068,239.82,239.81,0.3]
[1758355682416,17.09498408,239.82,239.8,0.2]
[1758355682619,31.2,239.79,239.77,0.2]
[1758355682826,9.09715328,239.78,239.77,0.2]
[1758355683035,9.81715328,239.78,239.77,0.2]
[1758355683340,15.65957787,239.78,239.77,0.2]
[1758355683542,31.48432314,239.76,239.75,0.2]
[1758355683742,6.29150835,239.76,239.75,0.2]
[1758355683913,7.01150835,239.76,239.75,0.2]
[1758355684228,43.39461979,239.76,239.75,0.2]
[1758355684433,8.6840638,239.76,239.75,0.2]
[1758355685133,12.8549013,239.76,239.75,0.2]
[1758355687448,10.90274032,239.76,239.75,0.2]
[1758355687612,11.85057816,239.76,239.75,0.91]
[1758355687818,41.37802271,239.76,239.75,0.91]
[1758355690049,39.42586173,239.76,239.75,0.91]
[1758355690344,41.37802271,239.76,239.75,0.91]
[1758355694651,41.37802271,239.76,239.75,0.2]
[1758355694856,42.09802271,239.76,239.75,0.2]
[1758355695223,41.37802271,239.76,239.75,0.2]
[1758355695428,41.37802271,239.76,239.75,0.91]
[1758355695629,41.37802271,239.76,239.75,0.2]
[1758355696030,42.09802271,239.76,239.75,0.2]
[1758355696237,43.77036839,239.76,239.75,0.2]
[1758355697742,44.05469153,239.76,239.75,0.2]
[1758355698456,12.85469153,239.76,239.75,0.2]
[1758355701536,10.90253055,239.76,239.75,0.2]
[1758355701740,12.85469153,239.76,239.75,0.2]
[1758355702463,12.75867473,239.76,239.75,0.2]
[1758355702761,12.03867473,239.76,239.75,0.2]
[1758355704249,31.2,239.74,239.73,0.71]
[1758355704448,37.11116841,239.74,239.73,0.71]
[1758355708161,4.17135944,239.73,239.72,0.2]
[1758355708347,8.13036687,239.73,239.72,0.88]
[1758355710164,5.32369508,239.73,239.72,0.88]
[1758355710469,8.13047667,239.73,239.72,0.88]
[1758355711547,10.08263765,239.73,239.72,0.88]
[1758355713258,10.08263765,239.73,239.72,0.2]
[1758355714070,10.08263765,239.73,239.72,0.88]
[1758355717252,10.08263765,239.73,239.72,0.2]
[1758355718979,10.08263765,239.73,239.72,0.88]
[1758355722063,10.08263765,239.73,239.72,0.2]
[1758355722268,10.08263765,239.73,239.71,0.1]
[1758355722467,8.13065068,239.72,239.71,0.78]
[1758355723768,8.13065068,239.72,239.71,0.1]
[1758355724362,8.13065068,239.72,239.71,0.78]
[1758355727777,10.08281166,239.72,239.71,0.78]
[1758355729387,10.08281166,239.72,239.71,0.1]
[1758355729569,12.44543705,239.72,239.7,0.2]
[1758355729775,4.64911723,239.71,239.7,0.2]
[1758355730786,8.8208247,239.71,239.7,0.2]
[1758355731302,12.33855887,239.71,239.7,0.2]
[1758355732567,14.01132416,239.71,239.7,0.2]
[1758355734089,12.33855887,239.71,239.7,0.2]
[1758355737491,12.33855887,239.71,239.67,0.68]
[1758355737692,1.95216098,239.69,239.68,0.91]
[1758355737888,5.91127821,239.69,239.68,0.91]
[1758355739192,10.76333378,239.69,239.68,0.2]
[1758355739367,10.08333378,239.69,239.68,0.2]
[1758355743802,9.38101431,239.69,239.68,0.2]
[1758355744699,9.27292389,239.69,239.68,0.2]
[1758355747091,9.27292389,239.69,239.68,0.91]
[1758355747883,9.27292389,239.69,239.68,0.2]
[1758355750417,9.95292389,239.69,239.68,0.2]
[1758355750578,9.27292389,239.69,239.68,0.2]
[1758355752305,9.95292389,239.69,239.68,0.2]
[1758355752682,9.27292389,239.69,239.68,0.2]
[1758355761900,8.02308238,239.69,239.68,0.2]
[1758355762101,9.27292389,239.69,239.68,0.2]
[1758355763117,3.85102681,239.69,239.68,0.91]
[1758355763418,36.30086832,239.69,239.68,0.91]
[1758355765534,5.10086832,239.69,239.68,0.91]
[1758355775732,3.85102681,239.69,239.68,0.91]
[1758355776232,3.85102681,239.69,239.68,5.08222963]
[1758355777936,3.85102681,239.69,239.68,0.91]
[1758355778420,3.85102681,239.69,239.68,0.2]
[1758355780818,3.85102681,239.69,239.68,0.89]
[1758355781642,5.10086832,239.69,239.68,0.89]
[1758355784718,5.10086832,239.69,239.68,0.2]
[1758355784919,5.1087356,239.69,239.68,0.2]
[1758355785127,5.10863915,239.69,239.68,0.2]
[1758355786746,5.10863915,239.69,239.68,0.89]
[1758355787152,5.10863915,239.69,239.68,0.2]
[1758355788249,3.85879764,239.69,239.68,0.2]
[1758355790836,10.00069472,239.69,239.68,0.2]
[1758355797079,9.28069472,239.69,239.68,0.2]
[1758355797983,9.98069472,239.69,239.68,0.2]
[1758355799485,9.28069472,239.69,239.68,0.2]
[1758355800056,9.98069472,239.69,239.68,0.2]
[1758355800782,9.28069472,239.69,239.68,0.2]
[1758355801162,9.98069472,239.69,239.68,0.2]
[1758355803787,10.68336794,239.69,239.68,0.2]
[1758355805790,10.68514151,239.69,239.68,0.2]
[1758355806184,15.87850481,239.69,239.68,0.2]
[1758355812697,15.17850481,239.69,239.68,0.2]
[1758355813373,15.87850481,239.69,239.68,0.2]
[1758355813693,15.17850481,239.69,239.68,0.2]
[1758355814598,11.65797676,239.69,239.68,0.2]
[1758355818699,11.65807371,239.69,239.68,0.2]
[1758355823290,12.35807371,239.69,239.68,0.2]
[1758355823493,15.87860176,239.69,239.68,0.2]
[1758355824999,15.17860176,239.69,239.68,0.2]
[1758355825892,15.84860176,239.69,239.68,0.2]
[1758355826299,15.17860176,239.69,239.68,0.2]
[1758355826479,14.13435604,239.69,239.68,0.2]
[1758355826686,15.1786269,239.69,239.68,0.2]
[1758355827101,15.1786269,239.69,239.68,0.87]
[1758355831219,15.1786269,239.69,239.68,0.2]
[1758355832704,31.2,239.67,239.66,0.2]
[1758355832885,37.01320803,239.67,239.66,0.2]
[1758355833086,37.01320803,239.67,239.66,0.87]
[1758355833484,38.68611324,239.67,239.66,0.87]
[1758355836215,42.85851696,239.67,239.66,0.87]
[1758355837914,41.18561175,239.67,239.66,0.87]
[1758355838612,41.18561175,239.67,239.66,0.2]
[1758355839102,41.18561175,239.67,239.66,0.87]
[1758355839288,42.85851696,239.67,239.66,0.87]
[1758355841706,41.18561175,239.67,239.66,0.87]
[1758355842115,42.85851695,239.67,239.66,0.2]
[1758355855433,47.04957352,239.67,239.66,0.2]
[1758355855615,47.04957352,239.67,239.65,0.2]
[1758355855616,43.52851695,239.67,239.65,0.2]
[1758355855816,7.38401365,239.66,239.65,0.2]
[1758355856238,8.06401365,239.66,239.65,0.2]
[1758355856543,9.7370588,239.66,239.65,0.2]
[1758355858238,13.90963661,239.66,239.65,0.2]
[1758355862948,13.22963661,239.66,239.65,0.2]
[1758355863158,5.53373845,239.66,239.65,0.87]
[1758355864935,5.53370782,239.66,239.65,0.87]
[1758355867841,4.48946759,239.66,239.65,0.87]
[1758355872774,2.81642244,239.66,239.65,0.87]
[1758355877256,4.48925768,239.66,239.65,0.87]
[1758355877684,2.81642244,239.66,239.65,0.87]
[1758355879777,4.48925769,239.66,239.65,0.87]
[1758355881378,4.48925769,239.66,239.65,0.2]
[1758355881750,4.48925769,239.66,239.65,0.87]
[1758355885387,4.48925769,239.66,239.65,0.2]
[1758355886073,2.81642244,239.66,239.65,0.2]
[1758355887892,2.81642244,239.66,239.65,0.9]
[1758355888185,1.24939461,239.68,239.65,0.9]
[1758355888365,3.85929124,239.67,239.66,0.7]
[1758355892884,5.53212648,239.67,239.65,0.2]
[1758355893085,2.8150584,239.66,239.65,0.9]
[1758355894990,2.8150584,239.66,239.65,0.2]
[1758355895692,2.8150584,239.66,239.65,0.9]
[1758355903379,2.8150584,239.66,239.65,0.2]
[1758355907308,3.85929151,239.66,239.65,0.2]
[1758355917317,2.8150584,239.66,239.65,0.2]
[1758355917914,2.8150584,239.66,239.65,0.88]
[1758355923012,2.8150584,239.66,239.65,0.2]
[1758355932509,3.4950584,239.66,239.65,0.2]
[1758355933016,6.98763621,239.66,239.65,0.2]
[1758355933221,7.66763621,239.66,239.65,0.2]
[1758355933415,8.71187642,239.66,239.65,0.2]
[1758355934125,6.98763621,239.66,239.65,0.2]
[1758355935613,8.71187642,239.66,239.65,0.2]
[1758355936406,8.03187642,239.66,239.65,0.2]
[1758355939121,9.98418767,239.66,239.65,0.2]
[1758355942328,10.66418767,239.66,239.65,0.2]
[1758355942727,12.33716284,239.66,239.65,0.2]
[1758355949926,15.85598584,239.66,239.65,0.2]
[1758355956334,12.33716284,239.66,239.65,0.2]
[1758355962338,11.65716284,239.66,239.65,0.2]
[1758355971053,11.65509647,239.66,239.65,0.2]
[1758355974258,15.17133651,239.66,239.65,0.2]
[1758355978555,13.21902526,239.66,239.65,0.92]
[1758355978768,6.98556984,239.66,239.65,0.92]
[1758355978936,8.93788109,239.66,239.65,0.92]
[1758355979139,6.98556984,239.66,239.65,0.92]
[1758355979344,8.93788109,239.66,239.65,0.92]
[1758355983170,9.98221108,239.66,239.65,0.92]
[1758355984466,9.98221108,239.66,239.65,0.2]
[1758355985646,10.69221108,239.66,239.65,0.2]
[1758355985847,12.36532621,239.66,239.65,0.2]
[1758355986264,11.65532621,239.66,239.65,0.2]
[1758355987780,10.95321204,239.66,239.65,0.2]
[1758356002587,14.46945208,239.66,239.65,0.2]
[1758356002890,13.219255,239.66,239.65,0.2]
[1758356003093,13.219255,239.66,239.65,0.92]
[1758356003394,10.95321204,239.66,239.65,0.92]
[1758356004090,9.28009691,239.66,239.65,0.92]
[1758356011267,12.79633695,239.66,239.65,0.92]
[1758356013495,12.79633695,239.66,239.65,0.2]
[1758356013683,12.79633695,239.66,239.65,0.88]
[1758356020599,9.28009691,239.66,239.65,0.88]
[1758356024010,12.79633695,239.66,239.65,0.88]
[1758356024214,12.79633695,239.66,239.65,0.2]
[1758356026608,12.79633695,239.66,239.65,0.88]
[1758356027911,12.79633695,239.66,239.65,0.2]
[1758356029216,11.54613987,239.66,239.65,0.2]
[1758356029398,12.79633695,239.66,239.65,0.2]
[1758356032013,12.79633695,239.66,239.65,0.88]
[1758356032207,12.79633695,239.66,239.65,0.2]
[1758356033006,12.79641896,239.66,239.65,0.2]
[1758356034208,9.28017892,239.66,239.65,0.2]
[1758356036297,12.79641896,239.66,239.65,0.2]
[1758356036612,8.02998184,239.66,239.65,0.2]
[1758356036927,3.85740403,239.66,239.65,0.87]
[1758356037715,7.37364407,239.66,239.65,0.87]
[1758356044496,8.62384115,239.66,239.65,0.87]
[1758356047417,7.37364407,239.66,239.65,0.87]
[1758356047624,8.62384994,239.66,239.65,0.87]
[1758356047828,9.32639965,239.66,239.65,0.87]
[1758356049024,7.37365286,239.66,239.65,0.87]
[1758356049225,2.81299203,239.66,239.65,5.04275192]
[1758356049421,1.67283525,239.68,239.65,6.99549871]
[1758356049725,2.81801511,239.67,239.66,2.62274679]
[1758356050203,5.46898683,239.74,239.66,2.62274679]
[1758356050400,3.85973724,239.73,239.67,0.67]
[1758356050605,3.85973724,239.72,239.67,0.67]
[1758356050826,3.85973724,239.71,239.67,0.67]
[1758356051030,2.81560318,239.7,239.67,0.67]
[1758356051203,2.81560318,239.69,239.68,4.17222963]
[1758356051403,2.81560318,239.69,239.68,4.84222963]
[1758356051624,2.81560318,239.69,239.68,0.67]
[1758356051923,2.81560318,239.69,239.68,8.36248008]
[1758356055128,2.81560318,239.69,239.68,70.26248008]
[1758356058332,2.81560318,239.71,239.68,70.26248008]
[1758356058524,2.81560318,239.7,239.68,70.26248008]
[1758356058724,2.81560318,239.69,239.68,70.26248008]
[1758356058925,2.81560318,239.71,239.68,70.26248008]
[1758356059121,2.81560318,239.7,239.68,70.26248008]
[1758356059312,2.81560318,239.69,239.68,70.26248008]
[1758356059636,2.81560318,239.71,239.68,70.26248008]
[1758356059826,2.81560318,239.7,239.68,70.26248008]
[1758356060127,2.81560318,239.69,239.68,69.59248008]
[1758356060336,2.81560318,239.71,239.68,70.26248008]
[1758356060506,2.81560318,239.7,239.69,0.67]
[1758356060925,2.81560318,239.7,239.69,62.57]
[1758356063636,2.81560318,239.7,239.69,61.9]
[1758356063829,9.60023148,239.7,239.69,61.9]
[1758356064156,17.4288643,239.7,239.69,61.9]
[1758356066845,17.4288643,239.7,239.66,0.67]
[1758356067144,6.98771196,239.69,239.67,0.67]
[1758356067343,2.81560318,239.68,239.67,0.67]
[1758356068745,2.81560318,239.68,239.65,62.77]
[1758356068933,2.81560318,239.67,239.65,62.1]
[1758356069243,2.81560318,239.68,239.66,0.67]
[1758356069443,2.81560318,239.67,239.66,0.67]
[1758356069645,6.98783805,239.68,239.66,0.67]
[1758356069947,2.81560318,239.67,239.66,0.67]
[1758356072870,2.81560318,239.67,239.66,62.57]
[1758356075450,2.81560318,239.67,239.66,61.9]
[1758356075635,2.81560318,239.67,239.66,62.57]
[1758356076434,2.81560318,239.67,239.66,61.9]
[1758356077347,2.81560318,239.67,239.66,62.57]
[1758356077853,2.81560318,239.67,239.66,61.9]
[1758356078056,2.81560318,239.67,239.66,62.57]
[1758356082063,2.81179112,239.67,239.66,62.57]
[1758356082250,2.81179112,239.67,239.66,61.9]
[1758356083256,2.81179112,239.67,239.66,62.57]
[1758356086066,6.98419484,239.67,239.66,61.9]
[1758356086242,7.70419484,239.67,239.66,61.9]
[1758356086565,6.98419484,239.67,239.66,61.9]
[1758356087572,8.02856709,239.67,239.66,61.9]
[1758356088863,6.98419484,239.67,239.66,61.9]
[1758356090646,6.98419484,239.67,239.65,62.77]
[1758356090846,2.81179112,239.66,239.65,62.77]
[1758356104180,2.81179112,239.66,239.65,62.1]
[1758356106393,3.85616374,239.66,239.65,62.1]
[1758356108274,3.85616374,239.66,239.65,62.75]
[1758356109375,2.81179112,239.66,239.65,62.75]
[1758356110477,2.81621822,239.66,239.65,62.75]
[1758356110899,2.81621822,239.66,239.65,66.92275192]
[1758356115176,2.81621822,239.66,239.65,62.1]
[1758356116272,2.81621822,239.66,239.65,66.92275192]
[1758356118085,2.81593508,239.66,239.65,66.92275192]
[1758356118580,2.81593508,239.66,239.65,62.75]
[1758356126890,2.81593508,239.66,239.65,62.1]
[1758356127590,2.81593508,239.66,239.65,62.81]
[1758356128199,2.81593508,239.66,239.65,66.98275192]
[1758356137100,2.81593508,239.66,239.65,62.1]
[1758356138289,2.81593508,239.66,239.65,62.81]
[1758356138503,2.81593508,239.66,239.65,66.98275192]
[1758356144181,2.81593508,239.66,239.65,62.81]
[1758356144389,2.81593508,239.66,239.65,62.1]
[1758356144390,3.51593508,239.66,239.65,62.1]
[1758356145209,2.81593508,239.66,239.65,62.1]
[1758356156116,2.81593508,239.66,239.65,62.81]
[1758356158708,2.81593508,239.66,239.65,62.1]
[1758356161813,2.81593508,239.66,239.65,62.81]
[1758356162208,2.81593508,239.66,239.65,62.1]
[1758356162516,2.81593508,239.66,239.65,62.81]
[1758356164417,2.81593508,239.66,239.65,66.98275192]
[1758356165013,2.81593508,239.66,239.65,62.81]
[1758356165516,2.81593508,239.66,239.65,62.1]
[1758356166519,2.81593508,239.66,239.65,62.81]
[1758356168224,2.81593508,239.66,239.65,62.1]
[1758356172029,3.50593508,239.66,239.65,62.1]
[1758356173227,2.81593508,239.66,239.65,62.1]
[1758356173824,6.98851289,239.66,239.65,62.1]
[1758356176522,7.67851289,239.66,239.65,62.1]
[1758356176722,6.98851289,239.66,239.65,62.1]
[1758356185817,2.81593508,239.66,239.65,62.1]
[1758356186129,2.81593508,239.66,239.65,62.81]
[1758356187546,2.81593508,239.66,239.65,62.1]
[1758356188638,2.81593508,239.66,239.65,62.81]
[1758356190335,3.86027567,239.66,239.65,62.81]
[1758356192338,3.86027567,239.66,239.65,62.1]
[1758356192643,2.81593508,239.66,239.65,62.1]
[1758356193340,2.81593508,239.66,239.65,62.81]
[1758356196642,2.81593508,239.66,239.65,62.1]
[1758356198650,2.81593508,239.66,239.65,62.81]
[1758356203540,2.81593508,239.66,239.65,62.1]
[1758356209146,2.81593508,239.66,239.65,62.81]
[1758356209546,2.81593508,239.66,239.65,62.1]
[1758356211160,3.86027567,239.66,239.65,62.1]
[1758356214233,4.56027567,239.66,239.65,62.1]
[1758356214434,3.86027567,239.66,239.65,62.1]
[1758356214748,8.03285348,239.66,239.65,62.1]
[1758356215326,8.73285348,239.66,239.65,62.1]
[1758356215530,18.46370747,239.66,239.65,62.1]
[1758356215731,21.28294666,239.66,239.65,55.04970814]
[1758356221166,21.28294666,239.66,239.64,0.2]
[1758356221354,9.98865245,239.65,239.64,0.2]
[1758356221855,18.3626896,239.65,239.64,0.2]
[1758356222157,16.41036885,239.65,239.64,0.9]
[1758356222355,2.81923919,239.65,239.64,0.9]
[1758356227073,2.81923919,239.65,239.64,50.94970814]
[1758356228265,2.81923919,239.65,239.64,55.12263419]
[1758356231958,2.81923919,239.65,239.64,50.94970814]
[1758356233559,2.81923919,239.65,239.64,55.12263419]
[1758356234679,31.2,239.71,239.64,65.55494932]
[1758356234860,4.77344314,239.72,239.65,1.94939415]
[1758356234861,3.85960771,239.7,239.65,1.94939415]
[1758356235062,3.85960771,239.69,239.66,0.7]
[1758356235283,3.85960771,239.68,239.66,0.7]
[1758356235461,12.54364142,239.71,239.66,0.7]
[1758356235462,12.54364142,239.71,239.66,50.74970814]
[1758356235773,3.52404899,239.74,239.67,14.49146234]
[1758356235774,2.81483921,239.7,239.67,14.49146234]
[1758356235985,2.81483921,239.69,239.68,4.87222963]
[1758356236156,2.81483921,239.69,239.68,54.22193777]
[1758356236867,2.81483921,239.69,239.68,54.92193777]
[1758356237261,2.81483921,239.73,239.68,67.46400596]
[1758356237481,3.85900092,239.72,239.69,0.7]
[1758356237782,2.81483921,239.71,239.69,0.7]
[1758356237999,2.81483921,239.7,239.69,0.7]
[1758356238371,2.81483921,239.7,239.69,4.87205557]
[1758356238682,2.81483921,239.73,239.69,4.87205557]
[1758356238866,2.81483921,239.72,239.69,4.17205557]
[1758356239067,2.81483921,239.71,239.7,0.7]
[1758356239263,2.81483921,239.71,239.69,4.17205557]
[1758356239470,2.81483921,239.7,239.69,4.17205557]
[1758356239773,2.81483921,239.73,239.69,54.92176371]
[1758356239973,2.81483921,239.72,239.7,4.87177547]
[1758356240159,2.81483921,239.71,239.7,4.17177547]
[1758356240766,2.81483921,239.71,239.7,4.87177547]
[1758356241276,2.81483921,239.73,239.7,4.87177547]
[1758356241484,2.81483921,239.72,239.71,0.7]
[1758356242599,2.81483921,239.72,239.71,50.74970814]
[1758356242907,2.81483921,239.72,239.71,50.04970814]
[1758356244288,2.81483921,239.73,239.71,50.04970814]
[1758356244490,2.81483921,239.72,239.71,50.04970814]
[1758356244701,2.81483921,239.73,239.71,50.04970814]
[1758356244902,2.81483921,239.72,239.71,50.04970814]
[1758356245109,2.81483921,239.73,239.71,50.04970814]
[1758356245289,12.54206819,239.74,239.71,50.04970814]
[1758356245290,2.81483921,239.72,239.71,50.04970814]
[1758356245506,2.81483921,239.73,239.71,50.04970814]
[1758356245691,2.81483921,239.72,239.71,50.04970814]
[1758356246006,2.81483921,239.73,239.71,50.04970814]
[1758356246203,2.81483921,239.72,239.71,50.04970814]
[1758356246407,2.81483921,239.73,239.71,50.71970814]
[1758356246588,2.81483921,239.72,239.71,50.71970814]
[1758356246788,2.81483921,239.73,239.71,50.71970814]
[1758356246990,2.81483921,239.72,239.71,50.71970814]
[1758356247196,2.81483921,239.73,239.71,50.71970814]
[1758356247391,2.81483921,239.72,239.71,50.71970814]
[1758356247598,2.81483921,239.73,239.71,50.71970814]
[1758356247797,2.81483921,239.72,239.71,0.67]
[1758356248098,2.81483921,239.73,239.71,0.67]
[1758356248292,2.81483921,239.72,239.7,4.17177547]
[1758356248512,2.81483921,239.74,239.7,16.71331934]
[1758356248719,2.81483921,239.73,239.7,73.61331934]
[1758356249010,2.81483921,239.72,239.7,74.28331934]
[1758356249199,2.81483921,239.73,239.7,74.28331934]
[1758356249996,2.81483921,239.73,239.7,61.74177547]
[1758356250713,2.81483921,239.73,239.7,67.16200906]
[1758356255522,2.81483921,239.73,239.71,0.67]
[1758356255723,2.81483921,239.74,239.71,0.67]
[1758356256023,2.81483921,239.73,239.71,0.67]
[1758356256222,2.81483921,239.74,239.71,0.67]
[1758356256523,2.81483921,239.73,239.71,0.67]
[1758356256725,2.81483921,239.74,239.71,0.67]
[1758356256941,2.81483921,239.73,239.71,0.67]
[1758356257233,2.81483921,239.74,239.71,0.67]
[1758356258333,3.50483921,239.74,239.71,0.67]
[1758356258836,2.81483921,239.74,239.71,0.67]
[1758356259332,2.81483921,239.75,239.71,0.67]
[1758356259509,2.81483921,239.74,239.71,0.67]
[1758356259709,2.81483921,239.75,239.71,57.57]
[1758356259935,2.81483921,239.74,239.71,57.57]
[1758356260333,3.50483921,239.75,239.71,57.57]
[1758356260738,2.81483921,239.75,239.72,0.67]
[1758356261246,3.50483921,239.75,239.72,0.67]
[1758356261542,3.50483921,239.75,239.71,56.9]
[1758356261744,3.50483921,239.75,239.71,57.57]
[1758356263344,2.81483921,239.74,239.71,57.57]
[1758356265723,6.98615689,239.74,239.71,57.57]
[1758356265924,7.67615689,239.74,239.71,56.9]
[1758356266120,2.81483921,239.73,239.71,56.9]
[1758356266533,2.81483921,239.73,239.71,57.57]
[1758356266839,2.81483921,239.73,239.71,56.9]
[1758356267350,2.81483921,239.72,239.71,56.9]
[1758356267546,2.81483921,239.73,239.71,57.57]
[1758356267739,2.81483921,239.72,239.71,57.57]
[1758356267946,2.81483921,239.73,239.71,56.9]
[1758356268147,2.81483921,239.73,239.71,57.57]
[1758356269429,2.81483921,239.72,239.71,57.57]
[1758356269729,2.81483921,239.73,239.71,57.57]
[1758356269929,2.81483921,239.72,239.71,57.57]
[1758356270130,2.81483921,239.73,239.71,57.57]
[1758356270453,2.81483921,239.72,239.71,57.57]
[1758356270637,2.81483921,239.73,239.71,57.57]
[1758356270937,15.01197817,239.74,239.71,57.57]
[1758356270938,2.81483921,239.72,239.71,57.57]
[1758356271139,2.81483921,239.73,239.71,57.57]
[1758356271340,2.81483921,239.72,239.71,57.57]
[1758356275352,2.81483921,239.72,239.71,70.33802702]
[1758356277446,3.85898643,239.72,239.71,70.33802702]
[1758356278251,3.85898644,239.72,239.71,70.33802702]
[1758356279559,8.03051989,239.72,239.71,56.9]
[1758356279749,9.93991404,239.72,239.71,49.85079204]
[1758356280058,18.32532859,239.72,239.71,49.85079204]
[1758356280248,21.84668518,239.72,239.71,49.85079204]
[1758356280558,18.32532859,239.72,239.71,49.85079204]
[1758356283368,28.75416222,239.72,239.67,0.71]
[1758356283543,1.24939415,239.7,239.66,44.65079204]
[1758356283864,4.53898644,239.69,239.66,44.65079204]
[1758356284046,3.85898644,239.68,239.66,45.36079204]
[1758356284248,3.85898644,239.67,239.66,45.36079204]
[1758356286145,2.81483921,239.67,239.66,45.36079204]
[1758356289379,6.98724293,239.67,239.66,45.36079204]
[1758356290050,6.98724293,239.67,239.66,44.65079204]
[1758356291274,6.98724293,239.67,239.66,45.36079204]
[1758356292571,6.98724293,239.67,239.66,44.65079204]
[1758356293475,6.98724293,239.67,239.66,45.36079204]
[1758356294286,6.98724293,239.67,239.66,44.65079204]
[1758356294661,6.98724293,239.67,239.66,45.36079204]
[1758356295878,4.17240372,239.67,239.66,45.36079204]
[1758356297577,4.17240372,239.67,239.65,0.71]
[1758356297882,6.98724293,239.67,239.65,0.71]
[1758356298057,4.17240372,239.67,239.65,0.71]
[1758356298263,16.71814339,239.67,239.65,0.71]
[1758356298466,16.71814339,239.67,239.66,0.71]
[1758356298783,19.52752105,239.67,239.66,0.71]
[1758356299883,19.52752105,239.67,239.65,0.71]
[1758356300076,16.71814339,239.67,239.65,0.71]
[1758356301186,16.71814339,239.67,239.65,45.36079204]
[1758356309305,2.80974787,239.66,239.65,45.36079204]
[1758356313388,37.32443498,239.7,239.65,45.36079204]
[1758356313589,3.85498363,239.69,239.66,0.68]
[1758356313771,49.86912544,239.7,239.66,0.68]
[1758356313772,2.81062604,239.68,239.66,0.68]
[1758356313968,2.81062604,239.69,239.66,0.68]
[1758356314188,2.81062604,239.68,239.66,0.68]
[1758356314373,2.81062604,239.69,239.66,0.68]
[1758356314573,2.81062604,239.68,239.66,0.68]
[1758356315269,2.81062604,239.67,239.65,44.65079204]
[1758356315468,4.76302034,239.67,239.65,44.65079204]
[1758356316272,2.81062604,239.66,239.65,44.65079204]
[1758356317293,6.98320385,239.66,239.65,44.65079204]
[1758356318396,6.98518181,239.66,239.65,44.65079204]
[1758356322281,8.02957277,239.66,239.65,44.65079204]
[1758356323081,8.02957277,239.66,239.65,45.33079204]
[1758356323803,8.02957277,239.66,239.65,44.65079204]
[1758356326899,8.72957277,239.66,239.65,44.65079204]
[1758356327601,8.02957277,239.66,239.65,44.65079204]
[1758356333485,8.02957277,239.66,239.65,45.33079204]
[1758356333906,8.02957277,239.66,239.65,44.65079204]
[1758356337800,8.70957277,239.66,239.65,44.65079204]
[1758356338401,18.01153984,239.66,239.65,44.65079204]
[1758356339112,8.02957277,239.66,239.65,44.65079204]
[1758356342720,8.02957277,239.66,239.64,44.85079204]
[1758356342894,8.02974688,239.65,239.64,44.85079204]
[1758356343818,9.98214118,239.65,239.64,0.2]
[1758356343997,22.52945501,239.65,239.64,0.2]
[1758356346022,23.21945501,239.65,239.64,0.2]
[1758356346317,21.26706071,239.65,239.64,0.2]
[1758356346509,23.21945501,239.65,239.64,0.2]
[1758356351919,22.51727238,239.65,239.64,0.2]
[1758356353026,21.47288142,239.65,239.64,0.2]